Cogmind - Beta 13 @@@ ROGUE MODE // 2024.07.26 @ 17:18:00 Player: jagoly Result: Destroyed by G-50 Soldier with Heavy Laser Performance ------------- Evolutions (4) 2000 Regions Visited (13) 2600 Robots Destroyed (194) 970 Value Destroyed (7156) 7156 Prototype IDs (24) 480 Alien Tech Used (0) 0 Bonus (1081) 1081 TOTAL SCORE: 14287 Bonus ------- High Alert Combat Kills 132 Follower Combat Kills 647 Entered Garrisons 200 Acquired ECA 300 Friendly Fire -198 Cogmind --------- Core Integrity 0/850 Matter 173/300 Energy 98/100 System Corruption 1% Temperature Cool (9) Movement Core (450) Ox8 Location -6/Lower Caves Parts ------- > --- POWER (1) -------- (None) > --- PROPULSION (6) --- (None) > --- UTILITY (6) ------ Large Storage Unit Advanced Targeting Computer System Shield > --- WEAPON (2) ------- Gauss Rifle Heavy Mace > --- INVENTORY (15) --- Advanced Heat Sink Encrypted Comm Array Hacking Suite Heart of Steel Advanced Beam Rifle Enhanced Autogun Plasma Cutter Peak State ------------ > --- POWER ------------ Multi-Deuterium Engine > --- PROPULSION ------- Treaded Biomechanical-FC Exoskeleton Improved Gravmag System Improved Gravmag System Improved Gravmag System Improved Gravmag System > --- UTILITY ---------- Armored Scrap Engine Large Storage Unit Advanced Targeting Computer Phase Shifter System Shield > --- WEAPON ----------- Flak Kinetic Gauss Construct/G Hpw. Ballistic Slug Construct/G > --- INVENTORY -------- Heavy Ion Engine Improved Gravmag System Improved Gravmag System Advanced Heat Sink Advanced Beam Rifle Advanced Beam Rifle Enhanced Autogun Enhanced Autogun Gauss Rifle Missile Launcher Plasma Cutter Heavy Mace [Rating: 76] Favorites ----------- Power Heavy Ion Engine Engine Heavy Ion Engine Power Core Nuclear Core Propulsion Light Treads Treads Light Treads Leg Aluminum Leg Hover Unit Improved Gravmag System Utility Large Storage Unit Device Improved Heat Sink Storage Large Storage Unit Processor Advanced Targeting Computer Hackware Hacking Suite Protection Medium Armor Plating Weapon Advanced Beam Cannon Energy Gun Advanced Beam Rifle Energy Cannon Advanced Beam Cannon Ballistic Gun Enhanced Autogun Launcher Missile Launcher Special Weapon Plasma Cutter Impact Weapon Heavy Mace Build | -11 -10 -10 -9 -9 -9 -8 -8 -8 -8 -8 -6 -6 -6 ------- Run | Yrd Mat Min Mat Min Exi Min Mat Sto Gar Rec Fac Low Low Slots Evolved 8 | . . . 2 . . . 2 . . . 4 . . Power . | . . . . . . . . . . . . . . Propulsion 4 | . . . 1 . . . . . . . 3 . . Utility 4 | . . . 1 . . . 2 . . . 1 . . Weapon . | . . . . . . . . . . . . . . Parts Attached 163 | 6 14 3 27 6 . 8 28 23 12 1 26 4 5 Power 13 | 1 1 . 3 . . 1 2 1 . . 4 . . Engine 12 | 1 1 . 2 . . 1 2 1 . . 4 . . Core 1 | . . . 1 . . . . . . . . . . Reactor . | . . . . . . . . . . . . . . Propulsion 52 | 2 6 2 8 2 . 2 7 8 2 1 10 2 . Treads 36 | . 4 2 8 2 . 2 7 8 2 1 . . . Leg 4 | 2 2 . . . . . . . . . . . . Wheel . | . . . . . . . . . . . . . . Hover 12 | . . . . . . . . . . . 10 2 . Flight . | . . . . . . . . . . . . . . Utility 36 | 1 4 1 8 1 . 2 7 2 1 . 7 1 1 Device 18 | . 2 1 2 1 . 2 2 1 1 . 4 1 1 Storage 5 | 1 1 . 2 . . . 1 . . . . . . Processor 5 | . . . 2 . . . 1 . . . 2 . . Hackware 4 | . . . 2 . . . . 1 . . 1 . . Protection 4 | . 1 . . . . . 3 . . . . . . Artifact . | . . . . . . . . . . . . . . Weapon 62 | 2 3 . 8 3 . 3 12 12 9 . 5 1 4 Energy Gun 11 | 1 . . 1 . . . 2 5 . . 2 . . Energy Cannon 17 | . 2 . 5 2 . 2 5 1 . . . . . Ballistic Gun 16 | 1 1 . 1 . . . 1 3 4 . 3 . 2 Ballistic Cannon . | . . . . . . . . . . . . . . Launcher 8 | . . . 1 1 . 1 2 . 1 . . 1 1 Special Weapon 4 | . . . . . . . . 3 1 . . . . Impact Weapon 6 | . . . . . . . 2 . 3 . . . 1 Slashing Weapon . | . . . . . . . . . . . . . . Piercing Weapon . | . . . . . . . . . . . . . . Special Melee Weapon . | . . . . . . . . . . . . . . Unidentified Prototypes 9 | . . . 4 . . . 2 3 . . . . . Parts Lost 34 | . 2 2 . . . 3 2 1 1 . 7 7 9 Power 2 | . . . . . . . . . . . 1 1 . Propulsion 14 | . . 2 . . . 2 1 . . . 1 4 4 Utility 11 | . 1 . . . . . . 1 1 . 3 2 3 Weapon 7 | . 1 . . . . 1 1 . . . 2 . 2 Highest Loss Streak 6 | . 2 2 . . . 1 2 1 1 . 3 5 6 To Critical Strikes . | . . . . . . . . . . . . . . Average Slot Usage (%) 94 | . 90 99 99 100 100 97 99 99 100 100 83 67 57 Engine 7 | . 14 14 6 . . 5 8 9 9 9 5 2 . Core 2 | . . . 4 11 11 5 . . . . . . . Treads 23 | . 19 27 33 33 33 30 26 27 27 27 4 6 5 Hover 5 | . . . . . . . . . . . 28 21 11 Device 12 | . 5 14 8 9 11 11 17 20 18 18 11 7 11 Storage 9 | . 14 14 11 11 11 11 9 9 9 9 6 6 6 Processor 7 | . . . 11 11 11 11 9 9 9 9 7 6 6 Hackware 3 | . . . 2 1 . . . 2 9 9 6 6 6 Protection 1 | . . . . . . . 8 2 . . . . . Energy Gun 2 | . 5 . 5 . . . 6 3 . . . . 1 Energy Cannon 10 | . 8 28 15 21 22 22 9 4 . . 1 . . Ballistic Gun 4 | . 13 . . . . . 1 8 12 18 4 2 5 Naked Turns . | . . . . . . . . . . . . . . Heaviest Build 49 | 14 34 32 36 36 36 38 49 49 40 37 41 36 33 Greatest Support 66 | 20 40 40 60 60 60 63 66 63 60 60 65 40 29 Greatest Overweight (x) 3 | 1 2 1 . . . . 1 . . . 3 1 2 Average Overweight (x) . | . . . . . . . . . . . . . . Largest Inventory Capacity 15 | 8 15 15 15 15 15 15 15 15 15 15 15 15 15 Average Capacity 14 | 6 12 15 15 15 15 15 15 15 15 15 15 15 15 Most Carried 15 | 3 15 15 15 15 15 15 15 15 15 15 15 13 12 Average Carried 13 | 1 9 14 14 14 15 13 14 14 14 14 12 11 11 Final Capacity 15 | 8 15 15 15 15 15 15 15 15 15 15 15 15 15 Final Carried 15 | 3 15 15 15 15 15 13 15 15 14 15 10 12 9 Scrap Engine Consumption 42 | . . . . . . . . . . . 37 3 2 Constructs Created 5 | . . . . . . . . . . . 5 . . Constructs Modified 10 | . . . . . . . . . . . 8 1 1 Class Distribution -------------------- 51% | Mutant 41% | Scavenger-Mutant 3% | Commander-Mutant 3% | Construct Dominant Class ---------------- Mutant | -10/Materials Mutant | -10/Mines Scavenger-Mutant | -9/Materials Scavenger-Mutant | -9/Mines Scavenger-Mutant | -9/Exiles Scavenger-Mutant | -8/Mines Mutant | -8/Materials Mutant | -8/Storage Scavenger-Mutant | -8/Garrison Mutant | -8/Recycling Mutant | -6/Factory Mutant | -6/Lower Caves Mutant | -6/Lower Caves Resources | -11 -10 -10 -9 -9 -9 -8 -8 -8 -8 -8 -6 -6 -6 ----------- Run | Yrd Mat Min Mat Min Exi Min Mat Sto Gar Rec Fac Low Low Matter Collected 3410 | 233 259 25 292 93 . 87 376 482 341 . 941 253 28 Remotely . | . . . . . . . . . . . . . . Salvage Created 7218 | . 535 39 1718 148 . 387 1021 1530 361 . 784 494 201 Parts 366 | . 34 3 97 5 . 20 47 62 25 . 44 25 4 Haulers Intercepted 18 | . 1 . 6 . . . 4 6 . . 1 . . Recyclers Shooed 4 | . . . 1 . . . . 1 . . 2 . . Parts Field Recycled . | . . . . . . . . . . . . . . Retrieved Matter . | . . . . . . . . . . . . . . Parts Self-Destructed 25 | . . . . . . . . . . . . 21 4 Prevented 1 | . . . . . . . . . . . . . 1 Kills | -11 -10 -10 -9 -9 -9 -8 -8 -8 -8 -8 -6 -6 -6 ------- Run | Yrd Mat Min Mat Min Exi Min Mat Sto Gar Rec Fac Low Low Combat Hostiles Destroyed 143 | . 10 3 23 4 . 9 19 18 13 . 23 12 9 Guns 50 | . 4 . 3 . . . 6 10 11 . 13 2 1 Cannons 65 | . 6 3 16 3 . 6 7 8 . . 10 6 . AOE 25 | . . . 4 1 . 2 5 . 1 . . 4 8 Classes Destroyed 13 | . 5 . 3 1 . . 1 1 1 . 1 . . Worker 2 | . . . 1 1 . . . . . . . . . Hauler 18 | . 1 . 6 . . . 4 6 . . 1 . . Recycler 10 | . . . 4 1 . . . 5 . . . . . Operator 10 | . 3 . 3 . . . 1 1 . . 2 . . Drone 1 | . . . . . . . . 1 . . . . . Watcher 11 | . 3 . 3 . . . 1 1 . . 3 . . Swarmer 37 | . 3 3 4 1 . 1 4 3 6 . 7 3 2 Grunt 70 | . 7 . 11 2 . 7 9 6 6 . 9 9 4 Brawler 3 | . . . . . . . . . 1 . . . 2 Duelist 3 | . . . . 1 . 1 . 1 . . . . . Sentry 21 | . . . 8 . . . 4 7 . . 1 . 1 Hunter 7 | . . . . . . . 2 1 . . 4 . . Programmer 2 | . . . . . . . . . . . 2 . . Best Kill Streak 9 | . 4 3 8 5 . 3 4 8 2 . 4 4 9 Combat Bots Only 9 | . 4 3 5 3 . 3 4 4 2 . 4 4 9 Max Kills in Single Turn 4 | . 1 2 2 2 . 1 4 1 1 . 1 2 3 Gunslinging . | . . . . . . . . . . . . . . Exploded 4 | . . . 2 1 . 1 4 . 1 . . 2 3 Melee . | . . . . . . . . . . . . . . Uniques/NPCs Destroyed . | . . . . . . . . . . . . . . Combat | -11 -10 -10 -9 -9 -9 -8 -8 -8 -8 -8 -6 -6 -6 -------- Run | Yrd Mat Min Mat Min Exi Min Mat Sto Gar Rec Fac Low Low Hostile Shots Fired 812 | . 70 25 66 30 . 33 83 99 50 . 206 68 82 Missed 245 | . 15 4 16 10 . 9 21 34 14 . 82 18 22 Damage Taken 7967 | . 586 168 616 319 . 391 822 728 264 . 1891 897 1285 Core 1389 | . 61 37 97 35 . 33 133 81 45 . 297 115 455 Absorbed by Shields 606 | . . . . . . . 116 216 144 . 130 . . Redirected to Shielding 31 | . . . . . . . 31 . . . . . . Regen/Repaired (Parts) 246 | . . . . . . . . . . . 187 44 15 Core Remaining (%) 67 | 100 . 60 . . . 58 . . . 52 . . . Volleys Fired 528 | . 43 5 81 15 . 24 67 83 32 . 125 34 19 Largest 2 | . 2 2 2 2 . 2 2 2 2 . 2 2 2 Hottest 136 | . 136 136 136 136 . 136 136 136 50 . 122 56 66 Shots Fired 929 | . 86 10 159 26 . 46 125 166 58 . 178 53 22 Gun 419 | . 48 . 29 . . . 40 106 56 . 104 20 16 Cannon 487 | . 38 10 128 23 . 44 81 60 . . 74 29 . Launcher 23 | . . . 2 3 . 2 4 . 2 . . 4 6 Special . | . . . . . . . . . . . . . . Kinetic 360 | . 34 . . . . . 1 58 56 . 146 49 16 Thermal 546 | . 52 10 157 23 . 44 120 108 . . 32 . . Explosive 23 | . . . 2 3 . 2 4 . 2 . . 4 6 Electromagnetic . | . . . . . . . . . . . . . . Robot Hit Streak 17 | . 6 5 13 11 . 9 14 17 15 . 17 8 13 Robot Miss Streak 6 | . 6 2 3 4 . 2 4 2 3 . 4 3 3 Penetration Max 1 | . . . . . . . . . . . 1 . 1 Secondary Targets 1 | . . . . . . . . 1 . . . . . Max Gunslinging Chain 1 | . . . . . . . . 1 . . . . . Shots Hit Robots 653 | . 43 6 99 16 . 31 89 124 38 . 153 33 21 Core Hits 377 | . 22 3 45 11 . 17 40 48 19 . 119 28 25 Critical Kills 2 | . . . 1 . . . . . . . . 1 . Critical Parts Destroyed 1 | . . . . . . . . . . . 1 . . Critical Strikes 13 | . 1 . 3 . . . 1 4 . . 3 1 . Burn 9 | . 1 . 2 . . . 1 4 . . 1 . . Meltdown 1 | . . . 1 . . . . . . . . . . Destroy 2 | . . . . . . . . . . . 1 1 . Blast 1 | . . . . . . . . . . . 1 . . Melee Attacks 35 | . . . . . . . 7 . 21 . . . 7 Impact 35 | . . . . . . . 7 . 21 . . . 7 Slashing . | . . . . . . . . . . . . . . Piercing . | . . . . . . . . . . . . . . Sneak Attacks . | . . . . . . . . . . . . . . Combat Hostiles . | . . . . . . . . . . . . . . Follow-up Attacks . | . . . . . . . . . . . . . . Damage Inflicted 15521 | . 681 143 2192 549 . 780 2164 2245 905 . 2930 1229 1703 Guns 5388 | . 394 . 351 . . . 620 1381 643 . 1504 168 327 Cannons 6887 | . 287 143 1626 327 . 611 1152 839 . . 1426 476 . Explosions 3002 | . . . 215 222 . 169 370 25 223 . . 585 1193 Melee 222 | . . . . . . . . . 39 . . . 183 Ramming 22 | . . . . . . . 22 . . . . . . Kinetic 4825 | . 269 . . . . . . 678 643 . 2264 644 327 Thermal 7492 | . 412 143 1977 327 . 653 1772 1542 . . 666 . . Explosive 2960 | . . . 215 222 . 127 370 25 223 . . 585 1193 Electromagnetic . | . . . . . . . . . . . . . . Impact 222 | . . . . . . . . . 39 . . . 183 Slashing . | . . . . . . . . . . . . . . Piercing . | . . . . . . . . . . . . . . Highest Corruption 1 | . . . . . . . . . . . 1 1 1 Average Corruption 1 | . . . . . . . . . . . 1 1 1 Corruption Purged . | . . . . . . . . . . . . . . Corruption Blocked . | . . . . . . . . . . . . . . Effects 10 | . . . . . . . . . . . 5 3 2 Message Errors 2 | . . . . . . . . . . . 1 1 . Matter Fused 1 | . . . . . . . . . . . . 1 . Heat Flow Errors 1 | . . . . . . . . . . . . . 1 Energy Discharges 1 | . . . . . . . . . . . . . 1 Data Loss (minor) 3 | . . . . . . . . . . . 3 . . Weapon Failures 2 | . . . . . . . . . . . 1 1 . Overload Shots . | . . . . . . . . . . . . . . Overflow Damage 122 | . 1 1 . 19 . . . 16 19 . 1 . 65 Projectiles 38 | . 1 1 . 19 . . . 16 . . 1 . . Explosions 58 | . . . . . . . . . . . . . 58 Melee 26 | . . . . . . . . . 19 . . . 7 Knockbacks 36 | . . . . . . . . . 1 . 24 8 3 Impact 4 | . . . . . . . . . 1 . . . 3 Kinetic 21 | . . . . . . . . . . . 14 7 . Secondary 11 | . . . . . . . . . . . 10 1 . Self-Inflicted Damage 87 | . . . . . . 4 31 52 . . . . . Shots 3 | . . . . . . 1 1 1 . . . . . Rammed . | . . . . . . . . . . . . . . Targets Rammed . | . . . . . . . . . . . . . . Kicked . | . . . . . . . . . . . . . . Crushed . | . . . . . . . . . . . . . . Highest Temperature 367 | . 283 165 367 297 . 234 312 93 . . 64 41 224 Average Temperature 64 | . 86 86 68 112 . 89 88 23 . . 20 12 57 Received Heat Transfer 2240 | . 231 . 270 60 . 198 287 216 80 . 300 237 361 Effects 7 | . 1 . 2 . . . 4 . . . . . . Energy Bleed 6 | . 1 . 2 . . . 3 . . . . . . Matter Decay 1 | . . . . . . . 1 . . . . . . Siege Activations . | . . . . . . . . . . . . . . Robots Corrupted . | . . . . . . . . . . . . . . Combat Hostiles . | . . . . . . . . . . . . . . Parts Fried 1 | . . . . . . . . . 1 . . . . Impact Corruptions 2 | . . . . . . . . . 1 . . . 1 Robots Melted 3 | . . . 1 . . 1 1 . . . . . . Combat Hostiles 2 | . . . . . . 1 1 . . . . . . Parts Melted 29 | . 3 . 6 1 . 1 8 8 . . 2 . . Heat Transferred 14665 | . 962 259 3848 592 . 1160 3293 3330 . . 1221 . . Parts Sabotaged . | . . . . . . . . . . . . . . Parts Stolen . | . . . . . . . . . . . . . . Parts Stripped . | . . . . . . . . . . . . . . Power Chain Reactions . | . . . . . . . . . . . . . . Alert | -11 -10 -10 -9 -9 -9 -8 -8 -8 -8 -8 -6 -6 -6 ------- Run | Yrd Mat Min Mat Min Exi Min Mat Sto Gar Rec Fac Low Low Peak Influence 1133 | . 154 86 505 264 . 320 388 468 1133 509 405 . . Initial 509 | . . 21 . 163 . . 46 163 63 509 7 . . Average 237 | . 38 40 227 141 . 177 262 218 627 198 261 . . Maximum Alert Level 4 | . . . 2 1 . 1 1 2 4 2 2 . . Low Security (%) 42 | 100 100 100 44 67 . 53 14 43 5 14 15 . . Level 1 43 | . . . 40 32 . 46 85 45 20 81 77 . . Level 2 8 | . . . 15 . . . . 10 27 3 6 . . Level 3 5 | . . . . . . . . . 43 . . . . Level 4 . | . . . . . . . . . 1 . . . . Level 5 . | . . . . . . . . . . . . . . High Security . | . . . . . . . . . . . . . . Max Security . | . . . . . . . . . . . . . . Squads Dispatched 21 | . 2 . 5 . . . 1 3 . . 9 . 1 Investigation 3 | . . . 1 . . . . 1 . . 1 . . Extermination 1 | . . . . . . . . . . . 1 . . Reinforcement 9 | . 2 . 3 . . . 1 . . . 3 . . Assault 2 | . . . 1 . . . . . . . . . 1 Garrison 6 | . . . . . . . . 2 . . 4 . . Intercept . | . . . . . . . . . . . . . . Searches Triggered . | . . . . . . . . . . . . . . Construction Impeded . | . . . . . . . . . . . . . . Haulers Reinforced 1 | . . . . . . . . . . . 1 . . Active Scanning Responses . | . . . . . . . . . . . . . . Cargo Convoy Interrupts . | . . . . . . . . . . . . . . Stealth | -11 -10 -10 -9 -9 -9 -8 -8 -8 -8 -8 -6 -6 -6 --------- Run | Yrd Mat Min Mat Min Exi Min Mat Sto Gar Rec Fac Low Low Distress Signals 11 | . 2 . 2 . . . 4 2 . . 1 . . Communications Jammed . | . . . . . . . . . . . . . . Distress Signals . | . . . . . . . . . . . . . . Times Spotted 225 | . 16 3 34 5 . 14 27 23 26 . 45 17 15 Peak Tracking Total 9 | . 4 3 6 3 . 3 5 4 6 . 4 4 9 Tactical Retreats 13 | . 1 . 2 . . 2 1 1 1 . 1 2 2 Traps | -11 -10 -10 -9 -9 -9 -8 -8 -8 -8 -8 -6 -6 -6 ------- Run | Yrd Mat Min Mat Min Exi Min Mat Sto Gar Rec Fac Low Low Traps Triggered 4 | . . . . . . . . . 2 . 2 . . Indirectly . | . . . . . . . . . . . . . . Trap Hack Attempts . | . . . . . . . . . . . . . . Triggered . | . . . . . . . . . . . . . . Disarmed . | . . . . . . . . . . . . . . Reprogrammed . | . . . . . . . . . . . . . . Reused . | . . . . . . . . . . . . . . Traps Extracted . | . . . . . . . . . . . . . . Installed . | . . . . . . . . . . . . . . Triggered 1 | . . . . . . . . . . . . . 1 Machines | -11 -10 -10 -9 -9 -9 -8 -8 -8 -8 -8 -6 -6 -6 ---------- Run | Yrd Mat Min Mat Min Exi Min Mat Sto Gar Rec Fac Low Low Machines Disabled 18 | . . 1 1 . . 2 2 1 8 . . 1 2 Max in Single Turn 2 | . . 1 1 . . 1 1 1 2 . . 1 1 Garrison Access 2 | . . . . . . . 1 . . . 1 . . Garrison Relay 4 | . . . . . . . . . 4 . . . . Phase Generator 1 | . . . . . . . . . 1 . . . . Machines Repaired . | . . . . . . . . . . . . . . Machines Dismantled 4 | . . . . . . . . 3 1 . . . . Machines Sabotaged . | . . . . . . . . . . . . . . Overloaded Fab Kills . | . . . . . . . . . . . . . . Hacking | -11 -10 -10 -9 -9 -9 -8 -8 -8 -8 -8 -6 -6 -6 --------- Run | Yrd Mat Min Mat Min Exi Min Mat Sto Gar Rec Fac Low Low Machines Accessed 46 | . 6 1 8 . 2 . 7 7 3 6 5 1 . Terminals 30 | . 6 . 6 . . . 5 6 3 2 2 . . Fabricators 1 | . . . . . . . . . . . 1 . . Repair Stations . | . . . . . . . . . . . . . . Recycling Units 8 | . . . 2 . . . 1 . . 4 1 . . Scanalyzers . | . . . . . . . . . . . . . . Garrison Access 3 | . . . . . . . 1 1 . . 1 . . Total Hacks 129 | . 23 1 13 . 30 . 19 16 4 11 11 1 . Successful 70 | . 8 1 6 . 30 . 4 8 3 7 2 1 . Failed 59 | . 15 . 7 . . . 15 8 1 4 9 . . Catastrophic 12 | . 3 . 2 . . . 3 1 . 1 2 . . Database Lockouts . | . . . . . . . . . . . . . . Manual 34 | . 15 . 3 . . . 8 5 . 3 . . . Terminals 76 | . 23 . 11 . . . 15 15 4 5 3 . . Fabricators 3 | . . . . . . . . . . . 3 . . Repair Stations . | . . . . . . . . . . . . . . Recycling Units 14 | . . . 2 . . . 3 . . 6 3 . . Scanalyzers . | . . . . . . . . . . . . . . Garrison Access 4 | . . . . . . . 1 1 . . 2 . . Terminal Hacks 61 | . 8 1 4 . 30 . 3 7 3 3 1 1 . Record 30 | . . . . . 30 . . . . . . . . Robot Analysis 1 | . . . 1 . . . . . . . . . . Prototype ID Bank 6 | . 2 . 1 . . . 1 1 . . 1 . . Open Door 4 | . . 1 . . . . . 2 . . . 1 . Branch Access Points 2 | . 1 . . . . . 1 . . . . . . Emergency Access Points 2 | . . . . . . . 1 . 1 . . . . Terminal Index 2 | . 1 . . . . . . 1 . . . . . Unreport Threat 5 | . 1 . . . . . . 2 . 2 . . . Locate Traps 3 | . 1 . 1 . . . . 1 . . . . . Hauler Manifests 1 | . . . 1 . . . . . . . . . . Registered Components 2 | . 2 . . . . . . . . . . . . Registered Prototypes 1 | . . . . . . . . . . 1 . . . Garrison Registry 1 | . . . . . . . . . 1 . . . . Patrol Navigation 1 | . . . . . . . . . 1 . . . . Fabricator Hacks . | . . . . . . . . . . . . . . Repair Station Hacks . | . . . . . . . . . . . . . . Recycling Unit Hacks 6 | . . . 2 . . . . . . 4 . . . Retrieve Components 6 | . . . 2 . . . . . . 4 . . . Scanalyzer . | . . . . . . . . . . . . . . Garrison Access Hacks 3 | . . . . . . . 1 1 . . 1 . . Unlock Access 1 | . . . . . . . . 1 . . . . . Seal Access 2 | . . . . . . . 1 . . . 1 . . Unauthorized Hacks . | . . . . . . . . . . . . . . Terminals . | . . . . . . . . . . . . . . Fabricators . | . . . . . . . . . . . . . . Repair Stations . | . . . . . . . . . . . . . . Recycling Units . | . . . . . . . . . . . . . . Scanalyzers . | . . . . . . . . . . . . . . Garrison Access . | . . . . . . . . . . . . . . Data Cores Recovered 4 | . 2 . . . . . . 1 . . 1 . . Used . | . . . . . . . . . . . . . . Hacking Detections 36 | . 6 . 7 . . . 6 6 2 4 5 . . Full Trace Events 3 | . . . 2 . . . 1 . . . . . . Feedback Events . | . . . . . . . . . . . . . . Feedback Blocked . | . . . . . . . . . . . . . . Robot Schematics Acquired . | . . . . . . . . . . . . . . Robots Built . | . . . . . . . . . . . . . . Authchips . | . . . . . . . . . . . . . . Time . | . . . . . . . . . . . . . . Total Robot Build Rating . | . . . . . . . . . . . . . . Part Schematics Acquired . | . . . . . . . . . . . . . . Parts Built . | . . . . . . . . . . . . . . Authchips . | . . . . . . . . . . . . . . Time . | . . . . . . . . . . . . . . Total Part Build Rating . | . . . . . . . . . . . . . . Parts Repaired . | . . . . . . . . . . . . . . Time . | . . . . . . . . . . . . . . Parts Recycled . | . . . . . . . . . . . . . . Recycled Matter . | . . . . . . . . . . . . . . Retrieved Matter . | . . . . . . . . . . . . . . Retrieved Components 22 | . . . 17 . . . . . . 5 . . . Parts Scanalyzed . | . . . . . . . . . . . . . . Part Schematics Acquired . | . . . . . . . . . . . . . . Parts Damaged . | . . . . . . . . . . . . . . Bothacking | -11 -10 -10 -9 -9 -9 -8 -8 -8 -8 -8 -6 -6 -6 ------------ Run | Yrd Mat Min Mat Min Exi Min Mat Sto Gar Rec Fac Low Low Used RIF Installer . | . . . . . . . . . . . . . . Robots Hacked . | . . . . . . . . . . . . . . Non-combat . | . . . . . . . . . . . . . . Combat . | . . . . . . . . . . . . . . Robot Hacks Applied . | . . . . . . . . . . . . . . Relay Couplers Released 17 | . . . . . . . . . 17 . . . . Machine Destruction 17 | . . . . . . . . . 17 . . . . Fabnet Peak Effective % . | . . . . . . . . . . . . . . Robots Rewired 4 | . . . . . . . . . 2 . . . 2 Allies Hacked . | . . . . . . . . . . . . . . Hacks Repelled . | . . . . . . . . . . . . . . Allies | -11 -10 -10 -9 -9 -9 -8 -8 -8 -8 -8 -6 -6 -6 -------- Run | Yrd Mat Min Mat Min Exi Min Mat Sto Gar Rec Fac Low Low Total Allies 18 | . . . . 3 . . . 10 2 . . . 3 Largest Group 10 | . . . . 3 3 3 . 10 9 2 2 . 2 Highest-Rated Group 173 | . . . . 40 40 40 . 173 157 70 70 . 135 Highest-Rated Ally 135 | . . . . 16 16 16 . 29 39 39 39 . 135 Total Orders 21 | . . . . . . . . 17 4 . . . . STAY 2 | . . . . . . . . . 2 . . . . FOLLOW 2 | . . . . . . . . . 2 . . . . EXPLORE 17 | . . . . . . . . 17 . . . . . Ally Attacks 171 | . . . . 17 . 19 . 12 94 . 24 . 5 Total Damage 2182 | . . . . 134 . 262 . 159 1126 . 444 . 57 Kills 23 | . . . . 1 . 2 . 2 13 . 5 . . Allies Corrupted . | . . . . . . . . . . . . . . Allies Melted . | . . . . . . . . . . . . . . Intel | -11 -10 -10 -9 -9 -9 -8 -8 -8 -8 -8 -6 -6 -6 ------- Run | Yrd Mat Min Mat Min Exi Min Mat Sto Gar Rec Fac Low Low Robot Analysis Total 1 | . . . 1 . . . . . . . . . . Derelict Logs Recovered 5 | . . 1 . 2 . . . . . . . 2 . Drone Launches 21 | . . . . . . . . 21 . . . . . Drone Recoveries 7 | . . . . . . . . 7 . . . . . Exploration | -11 -10 -10 -9 -9 -9 -8 -8 -8 -8 -8 -6 -6 -6 ------------- Run | Yrd Mat Min Mat Min Exi Min Mat Sto Gar Rec Fac Low Low Turns Passed 12001 | 52 966 824 1645 895 658 504 1170 1212 1221 468 1675 467 244 Spaces Moved 7098 | 38 540 501 800 505 412 252 553 552 580 282 1447 472 164 Core 7 | 7 . . . . . . . . . . . . . Treads 4856 | . 327 501 800 505 412 252 553 552 580 282 65 1 26 Legs 244 | 31 213 . . . . . . . . . . . . Wheels . | . . . . . . . . . . . . . . Hover 1991 | . . . . . . . . . . . 1382 471 138 Flight . | . . . . . . . . . . . . . . Fastest Speed 40 | 50 120 160 160 160 160 160 160 160 160 160 40 72 72 Average Speed 134 | 108 144 160 160 160 160 160 160 160 160 162 75 76 99 Slowest Speed 260 | 120 260 240 160 160 160 160 240 160 160 163 250 125 182 Overloaded Moves . | . . . . . . . . . . . . . . Propulsion Burnouts . | . . . . . . . . . . . . . . Robots Hopped . | . . . . . . . . . . . . . . Cave-ins Triggered . | . . . . . . . . . . . . . . Exploration Rate (%) 64 | 3 89 98 66 98 88 64 63 75 87 58 22 65 26 Regions Visited 13 Branch Regions 8 Pre-discovered Areas 2 | . . . . . 1 . . . . . . 1 . Known Exits Taken 6 | . 1 . 1 . . 1 1 1 . . 1 . . Unknown Exits Taken 6 | 1 . 1 . 1 1 . . . . 1 . 1 . Scrap Searched 3 | . . 1 . 1 . . . . . . . . 1 Spaces Dug 7 | . . . . . . . 7 . . . . . . Terrain Destroyed 263 | . . . 17 24 . 25 29 15 89 . 1 35 28 Melee 7 | . . . . . . . 7 . . . . . . Projectile 4 | . . . . . . . . . . . . 1 3 AOE 251 | . . . 17 24 . 25 22 15 89 . . 34 25 Terrain Rammed 1 | . . . . . . . 1 . . . . . . Walls Destroyed 1 | . . . . . . . 1 . . . . . . Machines Disabled . | . . . . . . . . . . . . . . Actions | -11 -10 -10 -9 -9 -9 -8 -8 -8 -8 -8 -6 -6 -6 --------- Run | Yrd Mat Min Mat Min Exi Min Mat Sto Gar Rec Fac Low Low Total 8613 | 46 639 513 1013 565 411 307 701 713 781 291 1884 536 213 Wait 557 | . 22 . 60 33 . 17 17 8 121 5 245 23 6 Move 7085 | 37 539 500 799 504 411 251 552 551 579 281 1446 471 164 Hop . | . . . . . . . . . . . . . . Pick Up 66 | 3 11 2 16 3 . 2 9 5 . 2 11 2 . Fast Attach 44 | 6 8 . 8 1 . 1 5 6 . . 8 . 1 Attach 40 | . 3 3 2 . . 3 6 2 1 . 13 4 3 Detach 30 | . 5 1 2 . . 1 5 2 . . 12 2 . Swap 79 | . 3 . 17 5 . 4 17 15 11 1 5 . 1 Drop 98 | . 5 1 28 4 . 4 15 18 2 2 19 . . Fire 528 | . 43 5 81 15 . 24 67 83 32 . 125 34 19 Melee 35 | . . . . . . . 7 . 21 . . . 7 Ram 1 | . . . . . . . 1 . . . . . . Kick . | . . . . . . . . . . . . . . Crush . | . . . . . . . . . . . . . . Escape Stasis . | . . . . . . . . . . . . . . Rewire 19 | . . 1 . . . . . . 6 . . . 12 Trap . | . . . . . . . . . . . . . . Miscellaneous 31 | . . . . . . . . 23 8 . . . . Route ------- -11/Scrapyard -10/Materials (discovered 4 exits: *Mat x3 / *Min) -10/Mines (discovered 2 exits: *Mat x2) -9/Materials (discovered 4 exits: *Mat x2 / *Min x2) -9/Mines (discovered 4 exits: *Mat x2 / *Exi / [*Zio]) -9/Exiles (discovered 2 exits: [*Min x2]) -8/Mines -8/Materials (discovered 3 exits: *Fac / *Sto x2) -8/Storage (discovered 2 exits: *Fac / Gar) -8/Garrison (discovered 3 exits: *Rec x3) -8/Recycling -6/Factory (discovered 2 exits: [*Fac] / *Low) -6/Lower Caves -6/Lower Caves History --------- Turn | Location | Event 2 | -11/Scrapyard | Discovered new exit (range 16) 53 | -11/Scrapyard | Entered Materials 208 | -10/Materials | Discovered new exit (range 14) 301 | -10/Materials | Build established: Mutant 488 | -10/Materials | Discovered new exit (range 15) 580 | -10/Materials | Discovered new exit (range 15) 585 | -10/Materials | Identified exit to Mines 841 | -10/Materials | Discovered new exit (range 12) 1019 | -10/Materials | Entered Mines 1124 | -10/Mines | Learned 2 Materials zone layouts 1461 | -10/Mines | Discovered new exit (range 8) 1503 | -10/Mines | Found the Drone Emporium 1514 | -10/Mines | Found Prototype Device 1622 | -10/Mines | Discovered new exit (range 14) 1713 | -10/Mines | YI-UF0 nonchalantly dropped a Grenade Launcher on the ground 1843 | -10/Mines | Entered Materials 1843 | -9/Materials | Evolved 2 slots: Propulsion x1, Utility x1 1844 | -9/Materials | Identified exit to Mines 2413 | -9/Materials | Discovered new exit (range 15) 2494 | -9/Materials | Identified exit to Materials 2515 | -9/Materials | Build established: Scavenger-Mutant 2834 | -9/Materials | Discovered exit to Materials (range 16) 3258 | -9/Materials | Discovered exit to Mines (range 4) 3443 | -9/Materials | First assault squad dispatched 3488 | -9/Materials | Entered Mines 3489 | -9/Mines | Met a Derelict bent on vengeance 3744 | -9/Mines | Learned 2 Materials zone layouts 3798 | -9/Mines | Discovered exit to Materials (range 5) 3809 | -9/Mines | A Derelict revealed a hidden shortcut to a safe place 4046 | -9/Mines | Discovered exit to Materials (range 8) 4056 | -9/Mines | Assisted by bots powering up and referring to "LRC-V3" 4075 | -9/Mines | Deemed a non-threat by the Exiles lab entrance 4075 | -9/Mines | Discovered new exit (range 5) 4383 | -9/Mines | Entered Exiles 4383 | -9/Exiles | Accompanied by 3 allies 4404 | -9/Exiles | Discovered new exit (range 15) 4423 | -9/Exiles | Met 8R-AWN 4446 | -9/Exiles | Met EX-HEX 4534 | -9/Exiles | Met EX-DEC 4568 | -9/Exiles | Visited The Gauntlet 4782 | -9/Exiles | Learned location of Zion (-7) 4825 | -9/Exiles | Met EX-BIN 5023 | -9/Exiles | Discovered new exit (range 14) 5041 | -9/Exiles | Entered Mines 5041 | -8/Mines | Accompanied by 3 allies 5533 | -8/Mines | Discovered exit to Materials (range 8) 5545 | -8/Mines | Entered Materials 5545 | -8/Materials | Evolved 2 slots: Utility x2 5546 | -8/Materials | Identified exit to Factory 5858 | -8/Materials | Build established: Mutant 6298 | -8/Materials | Identified exit to Storage 6715 | -8/Materials | Entered Storage 7055 | -8/Storage | Garrison activated, responded to threat 7274 | -8/Storage | Lost 11 allies 7295 | -8/Storage | Discovered exit to Factory (range 26) 7594 | -8/Storage | Build established: Scavenger-Mutant 7708 | -8/Storage | Assisted by bots powering up and referring to "LRC-V3" 7910 | -8/Storage | Identified exit to Garrison 7919 | -8/Storage | Garrison activated, responded to threat 7927 | -8/Storage | Entered Garrison 7927 | -8/Garrison | Accompanied by 9 allies 7953 | -8/Garrison | Garrison Relay disabled 7987 | -8/Garrison | Triggered checkpoint 8010 | -8/Garrison | Garrison Relay disabled 8015 | -8/Garrison | Build established: Commander-Mutant 8077 | -8/Garrison | Triggered checkpoint 8083 | -8/Garrison | Triggered checkpoint 8111 | -8/Garrison | Triggered checkpoint 8152 | -8/Garrison | Lost 6 allies 8239 | -8/Garrison | Triggered checkpoint 8321 | -8/Garrison | Discovered new exit (range 3) 8418 | -8/Garrison | Build established: Scavenger-Mutant 8520 | -8/Garrison | Garrison Relay disabled 8539 | -8/Garrison | Triggered checkpoint 8582 | -8/Garrison | Discovered new exit (range 3) 8763 | -8/Garrison | Triggered checkpoint 8899 | -8/Garrison | Triggered checkpoint 8901 | -8/Garrison | Discovered new exit (range 15) 8901 | -8/Garrison | Discovered new exit (range 81) 8901 | -8/Garrison | Discovered new exit (range 102) 8920 | -8/Garrison | Garrison Relay disabled 9066 | -8/Garrison | Phase Generator disabled 9148 | -8/Garrison | Entered Recycling 9148 | -8/Recycling | Accompanied by 2 allies 9154 | -8/Recycling | Found Scrap Engine 9410 | -8/Recycling | Discovered new exit (range 16) 9455 | -8/Recycling | Build established: Mutant 9616 | -8/Recycling | Entered Factory 9616 | -6/Factory | Accompanied by 2 allies 9616 | -6/Factory | Evolved 4 slots: Propulsion x3, Utility x1 9649 | -6/Factory | Discovered new exit (range 11) 9833 | -6/Factory | Garrison activated, responded to threat 10133 | -6/Factory | Identified exit to Lower Caves 10420 | -6/Factory | Garrison activated, responded to threat 10477 | -6/Factory | Build established: Construct 10738 | -6/Factory | Discovered new exit (range 8) 10862 | -6/Factory | Lost 3 parts (1p1n1w) 10892 | -6/Factory | Build established: Mutant 11291 | -6/Factory | Entered Lower Caves 11297 | -6/Lower Caves | Met a Warlord Commander 11298 | -6/Lower Caves | Learned location of Warlord (-5) 11299 | -6/Lower Caves | Warlord Commander delivered Encrypted Comm Array 11301 | -6/Lower Caves | Found Encrypted Comm Array 11348 | -6/Lower Caves | Learned 8 Factory zone layouts 11369 | -6/Lower Caves | Learned location of 1 exit from Factory 11376 | -6/Lower Caves | Found Prototype Device 11485 | -6/Lower Caves | Lost 5 parts (1p3n1u) 11737 | -6/Lower Caves | Discovered new exit (range 9) 11758 | -6/Lower Caves | Entered another Lower Caves area 11858 | -6/Lower Caves | Attracted the attention of an 0b10 outpost 11865 | -6/Lower Caves | Core integrity fell below 50% 11896 | -6/Lower Caves | Destroyed 9 combat bots 11905 | -6/Lower Caves | Lost 3 parts (2n1w) 11986 | -6/Lower Caves | Core integrity fell below 20% 12002 | -6/Lower Caves | Destroyed by G-50 Soldier with Heavy Laser Last Messages --------------- 11973_ Particle Charger destroyed. 11977_ Destroyed Imp. Melee Analysis Suite. 11977_ L-41 Fighter system corrupted by crushing effect. 11979_ Critical hit (Burn: +37). A strange signal echoes through the caves. 11983_ L-41 Fighter knocked back. 11985_ Arm. Scrap Engine destroyed. 11985_ Scrap Engine core remains intact and functional. 11986_ L-41 Fighter knocked back. 11986_ Hpw. Ballistic Slug Construct/G destroyed. 11986_ Scrap Engine damaged due to network destabilization (-10). 11993_ Treaded Biomechanical-FC Exoskeleton destroyed. 11993_ Scrap Engine damaged due to network destabilization (-9). 11994_ Scrap Engine destroyed. 11994_ L-41 Fighter knocked back. 11995_ The unstable cave ceiling collapses. 11995_ L-41 Fighter crushed by falling debris. 11996_ The unstable cave ceiling collapses. 11996_ L-41 Fighter crushed by falling debris. 12000_ Slug penetrates G-67 Veteran. Map ----- +----------------------------------------------------+ | ?????????????????????????????????????????????????? | | ?????????????????????????????????????????????????? | | ?????????????????????????????????????????????????? | | ?????????????????????????????????????????????????? | | ?????????????????????????????????????????????????? | | ?????????????????????????????????????????????????? | | ?????????????????????????????????????????????????? | | ?????????????????????????????????????????????????? | | ???????????????????????????????????#"????????????? | | ??????????????????????????????????#"""##?????????? | | ??????????????????????????????????# ""##????????? | | ?????????????????????????###??????# #????????? | | ?????????????????????????? ####?## ##???????? | | ?????????????????????????? ### ??##??### | | ??????????????????????????? ? ### ### ? | | ???????????????????????????? #?# ## | | ????????????????????#######?# #?# ## ? | | ????????????????????# ### #### ## ?? | | ?????????????????????# ## ???? | | ??????????????????????# ### # ##????? | | ??????????????????????# # ""#????? | | ?????????????????????## # # "#????? | | ????????????????????## lg #????? | | ????????????????????# gg#" % #???? | | ????????????????????# i #### "#???? | | ????????????????????# @#??## ## % ""#???? | | ???????????????????# ##???# ## # ##????? | | ???????????????????######?????# ### ??? | | ??????????????????????????????# #### | | ??????????????????????????????## #??## ? | | ???????????????????###?????????# #???# ## | | ???????????????????# #????????# #???# #?# ##### | | ???????????????????# #???????# #???# ##??##???? | | ??????????????????## ???????# #???###????????? | | ??????????????????# ######## #????????????### | | ??????????????????# ## ############## | | ???????????????????# | | ???????????????????# ## | | ???????????????????# ## ### | | ???????????????????# #####?? | | ???????????????????## ## #?????? | | ????????????????????## ## #### #?????? | | ?????????????????????#### #####??## ???? | | ???????????????????###?## #???????## #?? | | ??????????????????#"""##" ##????????# ## | | ??????????????????#"""""" ##?????????# ## ## | | ??????????????????#" #?????????? #?# ## | | ??????????????????#"""""" ### #???? ##??###? | | ??????????????????#"""##" #???#####??????? | | ???????????????????#### #??????????????? | +----------------------------------------------------+ Best States ------------- Heat Dissipation 50 Energy Generation 18 Energy Capacity 285 Matter Stores 300 Matter Capacity 300 Sight Range 16 Terrain Scan Density 10 Armor Coverage 225 Power Shielding 66 Phase Shifting 5 Evasion (%) 57 Targeting Accuracy 8 Recoil Reduction 3 Offensive Hacking 10 Defensive Hacking 10 Item Schematics ----------------- None Robot Schematics ------------------ None Fabricated ------------ Nothing Alien Tech Used ----------------- None Achievements -------------- None Challenges ------------ None Game ------ Seed BombardmentRegenerativeSink Manual? 0 Play Time 02:36:11 Cumulative 145.7 hours Start 2024.07.24 @ 14:27:49 End 2024.07.26 @ 17:18:00 Sessions 3 Manual Loads 0 Difficulty Rogue Special Mode None Game No. 48 Rogue 48 Adventurer 0 Explorer 0 Win Type - Total 1 Types 1/0/0/0/0/0/0/0/0 Lore% 55 Gallery% 62 Achievement% 46 Wizard Run 0 Options --------- Layout 0 ASCII 0 Keyboard 1 Movement Numpad Keybinds 0 Fullscreen 1 Font 18/X11Bold Map View 76x50 Zoom Use 0% Tactical HUD 1 Map Filters NONE Filters NONE Steam 1 RUN: 855867ae-ab3b-4844-bbd8-fdb3f05d7ee0